[Event "7th Salamanca Festival 2024"]
[Site "Salamanca"]
[Date "2024.05.23"]
[Round "4.1"]
[White "Calzetta Ruiz, Monica"]
[Black "Iturrizaga Bonelli, Eduardo"]
[Result "0-1"]
[ECO "B43"]
[WhiteElo "2244"]
[BlackElo "2591"]
[Annotator "TA"]
[PlyCount "78"]
[EventDate "2024.05.18"]
[EventType "tourn"]
[EventCountry "ESP"]
[SourceTitle "playchess.com"]
[Source "ChessBase"]
[SourceQuality "1"]
[TimeControl "2400+5"]

{[%evp 12,78,35,45,32,30,40,15,27,16,32,24,37,21,21,7,10,20,4,0,45,38,41,37,151,29,37,28,43,29,40,21,28,0,28,15,17,20,17,11,14,16,11,30,23,-120,-116,-237,-256,-675,-628,-29954,-29955,-29949,-29944,-12842,-12844,-5185,-11607,-7308,-7204,-2456,-2166,-29977,-29974,-29995,-29996,-29996,-29997]} 1. e4 {[%emt 0:00:03]} c5 {[%emt 0:00:01]} 2. Nf3 {[%emt 0:00:03]} e6 {[%emt 0:00:04]} 3. d4 {[%emt 0:00:02]} cxd4 {[%emt 0:00:02]} 4. Nxd4 {[%emt 0:00:02]} a6 {[%emt 0:00:01]} 5. Nc3 {[%emt 0:00:09]} b5 {[%emt 0:00:02][%cal Bb7b5,Bb5b4][%mdl 32]} 6. Bd3 {[%emt 0:00:02]} Bb7 {[%emt 0:00:01]} 7. O-O {[%emt 0:00:28]} b4 {[%emt 0:00:05]} 8. Na4 {[%emt 0:01:21]} Nc6 {[%emt 0:00:01]} 9. Nxc6 {[%emt 0:00:51]} Bxc6 {[%emt 0:00:02] The position is equal.} 10. c4 {[%emt 0:00:01]} bxc3 {[%emt 0:04:58]} 11. Nxc3 {[%emt 0:00:06]} Bc5 {[%emt 0:00:02]} 12. Qe2 {[%emt 0:00:30][%cal Oa2a4]} Qb6 {[%emt 0:02:04]} 13. Nd5 {[%emt 0:04:32]} Bxd5 {[%emt 0:00:22]} (13... exd5 $2 14. exd5+ Ne7 15. dxc6 dxc6 16. b4 $18) 14. exd5 {[%emt 0:00:01]} Nf6 {[%emt 0:00:01]} 15. dxe6 {[%emt 0:00:09]} fxe6 {[%emt 0:00:02]} 16. Bg5 {[%emt 0:00:12][%cal Od3h7] A strong pair of Bishops.} O-O {[%emt 0:00:09]} 17. Bxf6 {[%emt 0:03:45]} gxf6 {[%emt 0:00:03] [#]} (17... Rxf6 $14 18. Bxh7+ Kh8) 18. Rac1 {[%emt 0:00:13]} (18. Qg4+ $1 $16 Kh8 19. Bxh7) 18... f5 $1 $11 {[%emt 0:00:24]} 19. Rc4 {[%emt 0:07:00]} Bd4 {[%emt 0:01:00][%cal Oe6e5]} 20. b3 {[%emt 0:00:12]} a5 {[%emt 0:04:11]} 21. Rfc1 {[%emt 0:00:32]} Kh8 {[%emt 0:01:24]} 22. Kf1 {[%emt 0:00:50]} (22. Qf3 {feels hotter.} Rg8 23. Qf4 Rg4 24. Rc8+) 22... Rg8 {[%emt 0:05:42]} 23. Qf3 {[%emt 0:01:10]} Raf8 {[%emt 0:01:09]} 24. Rc7 {[%emt 0:03:08]} Qd6 {[%emt 0:00:22]} 25. g3 {[%emt 0:01:29]} Bb6 {[%emt 0:06:51]} 26. Rb7 {[%emt 0:00:36]} Rg7 {[%emt 0:00:40]} 27. Bb5 {[%emt 0:00:37]} e5 {[%emt 0:00:56]} 28. Qd1 {[%emt 0:03:15] [#]} (28. Bxd7 $11 {keeps the balance.} e4 (28... Rxd7 29. Rc6 $14) 29. Qc3) 28... Qh6 $1 $17 {[%emt 0:02:44] White must now prevent ...f4.} 29. Bxd7 {[%emt 0:01:09] White does not recover from this.} (29. Rxd7 $17 {was forced.} Qh3+ 30. Ke1 Qxh2 (30... Bxf2+ $2 31. Kxf2 Qxh2+ 32. Ke1 $19) 31. Rc2 Qh1+ 32. Kd2 (32. Ke2 Qg2 $17) 32... Rxd7+ 33. Bxd7 Qxd1+ 34. Kxd1) 29... Bxf2 $1 $19 {[%emt 0:03:58]} 30. Rc8 $2 {[%emt 0:03:43]} (30. Bc6 f4 (30... Qxh2 $2 {loses.} 31. Qd6 $18) 31. Qf3 (31. Kxf2 $2 {perishes.} Qxh2+ 32. Kf3 Qxg3+ 33. Ke4 Qe3+ 34. Kd5 Rd8+ 35. Kc4 Rxd1 $19) (31. Rxg7 $2 fxg3 $19)) 30... Qh3+ {[%emt 0:00:05]} 31. Kxf2 {[%emt 0:02:50]} Qxh2+ {[%emt 0:00:02]} 32. Kf1 {[%emt 0:00:01]} Qh3+ {[%emt 0:00:42]} 33. Ke2 {[%emt 0:00:12]} Qg2+ {[%emt 0:00:13]} 34. Ke1 {[%emt 0:01:00]} Qxg3+ {[%emt 0:00:04]} 35. Kd2 {[%emt 0:00:01] [#]} Rxd7+ $1 {[%emt 0:00:11][%mdl 512]} 36. Rxd7 {[%emt 0:00:03]} Rxc8 {[%emt 0:00:15]} 37. Qh5 {[%emt 0:01:31]} Qf2+ {[%emt 0:00:31] Black mates.} 38. Kd1 {[%emt 0:00:13]} Qf1+ {[%emt 0:00:01]} ({Stronger than} 38... Qxa2 39. Qxh7#) 39. Kd2 {[%emt 0:00:05]} Qc1+ {[%emt 0:00:01] Weighted Error Value: White=0.65/Black=0.06 (flawless) .  Mistake:       	White=4     	Black=1      Inaccurate:     	White=2     	Black=2      OK:         	White=5     	Black=10     Strong:       	---       	Black=3} 0-1

[Event "7th Salamanca Festival 2024"]
[Site "Salamanca"]
[Date "2024.05.23"]
[Round "4.2"]
[White "Adams, Michael"]
[Black "Muzychuk, Mariya"]
[Result "0-1"]
[ECO "C77"]
[WhiteElo "2677"]
[BlackElo "2510"]
[Annotator "TA"]
[PlyCount "84"]
[EventDate "2024.05.18"]
[EventType "tourn"]
[EventCountry "ESP"]
[SourceTitle "playchess.com"]
[Source "ChessBase"]
[SourceQuality "1"]
[TimeControl "2400+5"]

{[%evp 12,84,17,0,10,-8,-1,-6,0,7,0,-6,-8,-16,0,0,-12,0,-9,-15,0,-14,-11,-16,-16,-22,-20,-11,-14,-15,-8,-4,-9,-16,0,0,-3,-7,0,0,0,0,11,0,4,0,0,0,8,7,7,7,38,0,0,0,0,0,0,0,15,15,16,0,18,0,0,0,15,0,0,0,0,-29998,-29999]} 1. e4 {[%emt 0:00:03]} e5 {[%emt 0:00:01]} 2. Nf3 {[%emt 0:00:03]} Nc6 {[%emt 0:00:01]} 3. Bb5 {[%emt 0:00:03]} a6 {[%emt 0:00:02]} 4. Ba4 {[%emt 0:00:02]} Nf6 {[%emt 0:00:05]} 5. d3 {[%emt 0:00:01]} b5 {[%emt 0:00:03]} 6. Bb3 {[%emt 0:00:02]} Bc5 {[%emt 0:00:02]} 7. a4 {[%emt 0:00:13]} Rb8 {[%emt 0:00:57]} 8. Be3 {[%emt 0:00:42]} Bxe3 {[%emt 0:01:50]} 9. fxe3 {[%emt 0:00:02]} O-O {[%emt 0:00:08] The position is equal.} 10. axb5 {[%emt 0:00:09]} axb5 {[%emt 0:00:02]} 11. O-O {[%emt 0:00:44]} d6 {[%emt 0:02:03]} 12. Nc3 {[%emt 0:01:28]} Ne7 {[%emt 0:02:30]} 13. Nh4 {[%emt 0:03:20]} Be6 {[%emt 0:01:03]} 14. Bxe6 {[%emt 0:03:08]} fxe6 {[%emt 0:00:01]} 15. Qd2 {[%emt 0:00:35]} d5 {[%emt 0:06:36]} 16. exd5 {[%emt 0:04:05]} exd5 {[%emt 0:00:05]} 17. Nf5 {[%emt 0:00:06]} b4 {[%emt 0:04:11] [#] Threatens to win with ...Nxf5.} 18. Ne2 {[%emt 0:03:33]} Nxf5 {[%emt 0:00:04]} 19. Rxf5 {[%emt 0:00:02]} Qd6 {[%emt 0:00:01]} 20. Ng3 {[%emt 0:00:47]} Ra8 {[%emt 0:06:39]} 21. Raf1 {[%emt 0:00:45]} g6 {[%emt 0:00:48]} 22. R5f3 {[%emt 0:01:51]} Nd7 {[%emt 0:02:51]} 23. Rxf8+ {[%emt 0:01:03]} Rxf8 {[%emt 0:00:02]} 24. Rxf8+ {[%emt 0:00:42]} Qxf8 $11 {[%emt 0:00:23][%mdl 4096] Endgame. KQN-KQN} 25. e4 {[%emt 0:01:30]} d4 {[%emt 0:01:25]} 26. Nf1 {[%emt 0:02:18]} c5 {[%emt 0:05:02]} 27. b3 {[%emt 0:01:53]} Qf6 {[%emt 0:00:29]} 28. Qd1 {[%emt 0:00:26]} h5 {[%emt 0:00:20]} 29. Nd2 {[%emt 0:00:32]} Kf7 {[%emt 0:00:16]} 30. g3 {[%emt 0:01:08]} Ke7 {[%emt 0:00:12]} 31. Kg2 {[%emt 0:01:04]} Qe6 {[%emt 0:01:25]} 32. Nc4 {[%emt 0:01:11]} Nb6 {[%emt 0:00:12]} 33. Nb2 {[%emt 0:00:01]} Nd7 {[%emt 0:00:09]} 34. Qd2 {[%emt 0:00:12]} Qf6 {[%emt 0:00:37]} 35. Qh6 {[%emt 0:00:47]} Kf7 {[%emt 0:00:24]} 36. Nc4 {[%emt 0:00:17]} Nf8 {[%emt 0:00:10]} 37. Qc1 {[%emt 0:01:45]} Nd7 {[%emt 0:00:11]} 38. Qa1 {[%emt 0:00:19]} g5 {[%emt 0:00:17]} 39. h3 {[%emt 0:00:46]} h4 {[%emt 0:00:11]} 40. Qd1 {[%emt 0:00:58] Qh5+ would now be deadly.} hxg3 {[%emt 0:00:04]} 41. Qh5+ {[%emt 0:00:01]} Kg7 {[%emt 0:00:31] ( -> ...Qf2+)} 42. Qg4 $2 {[%emt 0:00:02][%mdl 8192] [#]} (42. Qf3 $11) 42... Qf2+ {[%emt 0:00:03] Weighted Error Value: White=0.25 (precise) /Black=0.06 (flawless) .  Loses game:     	White=1     	---        Inaccurate:     	White=1     	Black=1      OK:         	White=11    	Black=10     Best:        	---       	Black=1} 0-1

[Event "7th Salamanca Festival 2024"]
[Site "Salamanca"]
[Date "2024.05.23"]
[Round "4.3"]
[White "Alekseenko, Kirill"]
[Black "Paehtz, Elisabeth"]
[Result "1-0"]
[ECO "B30"]
[WhiteElo "2679"]
[BlackElo "2457"]
[Annotator "TA"]
[PlyCount "97"]
[EventDate "2024.05.18"]
[EventType "tourn"]
[EventCountry "ESP"]
[SourceTitle "playchess.com"]
[Source "ChessBase"]
[SourceQuality "1"]
[TimeControl "2400+5"]

{[%evp 23,97,0,10,9,36,17,14,0,0,0,0,0,0,0,0,0,0,-17,0,0,0,0,0,0,0,0,0,0,0,-9,93,79,76,72,125,120,162,131,206,167,167,154,167,159,797,736,1543,1531,5189,425,309,462,429,409,168,168,404,359,1419,1323,1399,1363,29990,29991,29991,29992,29992,29993,29993,29992,29992,29993,29993,29992,29994,29994]} 1. e4 {[%emt 0:00:04]} c5 {[%emt 0:00:01]} 2. Nf3 {[%emt 0:00:14]} Nc6 {[%emt 0:00:02]} 3. Nc3 {[%emt 0:00:38]} e5 {[%emt 0:00:02]} 4. Bc4 {[%emt 0:00:07]} g6 {[%emt 0:00:03]} 5. d3 {[%emt 0:00:46]} h6 {[%emt 0:00:02]} 6. a3 {[%emt 0:00:19] B30: Sicilian: 2...Nc6 3 Bb5, lines without ...g6.} Nf6 {[%emt 0:01:23]} 7. O-O {[%emt 0:00:08]} d6 {[%emt 0:00:33]} 8. h3 {[%emt 0:00:27]} Bg7 {[%emt 0:00:02]} 9. b4 $146 {[%emt 0:01:01]} ({Predecessor:} 9. Rb1 O-O 10. Be3 Kh7 11. b4 b6 12. Qd2 Nd4 13. Nh2 g5 14. f3 Nh5 15. Nd1 {0-1 Bettendorf,H-Singbeil,H Ruhrgebiet VL2 9899 1998 (8)}) 9... b6 {[%emt 0:00:08]} 10. Rb1 {[%emt 0:01:03]} O-O {[%emt 0:00:07]} 11. Nd5 {[%emt 0:00:46]} Be6 {[%emt 0:01:05]} 12. bxc5 {[%emt 0:02:20]} bxc5 {[%emt 0:02:41]} 13. Ne3 {[%emt 0:00:20]} Qd7 {[%emt 0:00:32]} 14. Bd2 {[%emt 0:02:06]} Rab8 {[%emt 0:00:14]} 15. Bxe6 {[%emt 0:03:08]} Qxe6 {[%emt 0:01:43]} 16. c4 {[%emt 0:00:41]} Rxb1 {[%emt 0:00:56]} 17. Qxb1 {[%emt 0:00:02]} Rb8 {[%emt 0:00:01]} 18. Qc2 {[%emt 0:00:42]} Nd4 {[%emt 0:00:12]} 19. Nxd4 {[%emt 0:00:07]} exd4 {[%emt 0:00:01]} 20. Nd1 {[%emt 0:00:37]} Nh5 {[%emt 0:01:22]} 21. f4 {[%emt 0:04:41]} f5 {[%emt 0:00:02]} 22. Nf2 {[%emt 0:00:11]} Ng3 {[%emt 0:01:04]} 23. Re1 {[%emt 0:00:03]} fxe4 {[%emt 0:02:34]} 24. Nxe4 {[%emt 0:00:59]} Nxe4 {[%emt 0:00:02]} 25. Rxe4 {[%emt 0:00:15]} Qd7 {[%emt 0:00:06]} 26. Qd1 {[%emt 0:01:33]} Re8 {[%emt 0:01:29]} (26... Bf8 $11 {keeps the balance.}) 27. Rxe8+ {[%emt 0:00:18]} Qxe8 {[%emt 0:00:02]} 28. a4 {[%emt 0:00:14]} Qd7 {[%emt 0:00:34] [#]} (28... Kh7 $142) 29. a5 $1 $16 {[%emt 0:00:09]} Kh7 {[%emt 0:01:07] [#]} 30. Qf3 $1 {[%emt 0:00:18]} h5 {[%emt 0:01:18]} (30... Qc8 $16 31. Kf2 h5) 31. g4 {[%emt 0:00:26]} hxg4 {[%emt 0:00:03]} 32. hxg4 {[%emt 0:00:02]} a6 {[%emt 0:00:29]} 33. Kf2 {[%emt 0:00:44]} Qa4 $2 {[%emt 0:01:30]} (33... Qe7 $16 34. Kf1 Qe6) 34. f5 $18 {[%emt 0:01:19]} gxf5 {[%emt 0:02:57]} 35. Qxf5+ {[%emt 0:00:04]} Kh8 {[%emt 0:00:00]} 36. Qh5+ {[%emt 0:01:58]} (36. Qc8+ $142 Kh7 37. g5 (37. Qxa6 Qd1 $11)) 36... Kg8 $18 {[%emt 0:00:01]} 37. Qd5+ {[%emt 0:00:02]} (37. Qg6 $142 Kh8 38. Qxd6) 37... Kh7 {[%emt 0:00:00]} 38. Qe4+ {[%emt 0:00:43]} (38. Qxd6 Qd1 39. Qf4 Kg8 $18) 38... Kh8 {[%emt 0:00:20]} 39. Bf4 {[%emt 0:01:00]} Qc2+ $2 {[%emt 0:02:15]} (39... Be5 {was necessary.}) 40. Kg3 $18 {[%emt 0:01:20]} Qd1 $2 {[%emt 0:00:02]} (40... Qb1 41. Kh4 (41. Bxd6 Qg1+ 42. Kh4 Qf2+ 43. Kh5 Qf7+ 44. Qg6 Qg8 $18) 41... Qb8) 41. Kh4 $18 {[%emt 0:01:47]} (41. Bxd6 Qd2 42. Bxc5 Qxa5 $18) 41... Qa4 {[%emt 0:01:01]} 42. Bxd6 {[%emt 0:00:26]} Qxa5 {[%emt 0:00:09]} 43. Qe8+ {[%emt 0:03:26]} Kh7 {[%emt 0:00:01]} 44. g5 {[%emt 0:00:02]} Qd2 {[%emt 0:00:14]} 45. Qe4+ {[%emt 0:00:12]} ({Inferior is} 45. Bxc5 Qf4+ (45... Qxd3 46. Qh5+ Kg8 47. Qe8+ Kh7 48. Qh5+ Kg8 49. Qe8+ Kh7 $11) 46. Kh5 Qh2+ 47. Kg4 Qg2+ 48. Kf4 Qh2+ 49. Kg4 Qg2+ 50. Kf4 Qf1+ 51. Kg4 Qg2+ $11) 45... Kg8 {[%emt 0:02:13]} 46. Bf4 {[%emt 0:00:03]} ({Less strong is} 46. Bxc5 Qh2+ 47. Kg4 Qg1+ 48. Kf5 Qf1+ 49. Ke6 Qf7+ 50. Kd6 Qf8+ 51. Kc6 Qa8+ 52. Kb6 Qxe4 53. dxe4 a5 $18) 46... Qf2+ {[%emt 0:01:05]} 47. Kh5 {[%emt 0:00:05]} Kf8 {[%emt 0:01:10]} 48. Kg6 {[%emt 0:00:23]} Qf1 {[%emt 0:01:01]} 49. Qf5+ {[%emt 0:00:17]} 1-0

[Event "7th Salamanca Festival 2024"]
[Site "Salamanca"]
[Date "2024.05.23"]
[Round "4.4"]
[White "Salimova, Nurgyul"]
[Black "Ponomariov, Ruslan"]
[Result "0-1"]
[ECO "D03"]
[WhiteElo "2436"]
[BlackElo "2646"]
[Annotator "TA"]
[PlyCount "92"]
[EventDate "2024.05.18"]
[EventType "tourn"]
[EventCountry "ESP"]
[SourceTitle "playchess.com"]
[Source "ChessBase"]
[SourceQuality "1"]
[TimeControl "2400+5"]

{[%evp 12,92,20,2,29,33,31,37,54,50,68,0,76,78,65,55,73,51,57,33,35,19,41,0,0,-16,0,-42,-43,-50,-38,-45,-46,-43,-32,-116,-142,-135,-142,-130,-130,-231,-226,-235,-222,-224,-231,-241,-241,-238,-234,-232,-242,-310,-307,-387,-322,-309,-277,-516,-430,-560,-542,-562,-552,-546,-483,-525,-528,-1235,-1194,-1230,-1200,-1314,-1300,-1863,-1862,-1850,-1795,-1755,-1695,-2258,-2229]} 1. d4 {[%emt 0:00:04]} Nf6 {[%emt 0:00:02]} 2. Bg5 {[%emt 0:00:03]} d5 {[%emt 0:01:18]} 3. Nd2 {[%emt 0:00:14]} e6 {[%emt 0:01:15]} 4. e3 {[%emt 0:02:04]} h6 {[%emt 0:02:03]} 5. Bh4 {[%emt 0:00:13][%cal Bg5h4,Bh4g3,Bg3e5][%mdl 32]} c5 {[%emt 0:01:27]} 6. Ngf3 {[%emt 0:01:03]} Nc6 {[%emt 0:00:15]} 7. c3 {[%emt 0:00:15]} Qb6 {[%emt 0:04:56]} 8. Rb1 {[%emt 0:01:18]} g5 {[%emt 0:01:22]} 9. Bg3 {[%emt 0:00:03]} Nh5 {[%emt 0:00:02] White is slightly better.} 10. Be5 {[%emt 0:02:15]} Rg8 {[%emt 0:03:55]} 11. g4 {[%emt 0:00:42]} (11. h3 $14) 11... f6 {[%emt 0:00:47]} (11... cxd4 $1 $11 {keeps the balance.} 12. Bxd4 (12. gxh5 dxe3 13. fxe3 g4 $17) 12... Nxd4 13. cxd4 Nf6) 12. dxc5 $16 {[%emt 0:05:56]} Bxc5 {[%emt 0:00:27]} 13. Bd4 {[%emt 0:00:11]} Bxd4 {[%emt 0:00:18]} 14. cxd4 {[%emt 0:01:01]} Ng7 {[%emt 0:00:02]} 15. Qc2 {[%emt 0:00:45]} (15. h4 {simplifies} Bd7 16. b4 O-O-O 17. hxg5 hxg5 18. Rh6) 15... Kf7 {[%emt 0:03:20] Wards off Qg6+} 16. h4 {[%emt 0:01:07] [#] Qh7 is the strong threat.} Bd7 $1 {[%emt 0:00:22]} 17. hxg5 {[%emt 0:02:40]} hxg5 {[%emt 0:00:01]} 18. Rh6 {[%emt 0:05:03]} Ne7 {[%emt 0:01:09] Wards off Qg6+} 19. e4 {[%emt 0:01:36] Black must now prevent e5.} Rh8 {[%emt 0:07:27]} 20. Rxh8 {[%emt 0:00:36]} Rxh8 {[%emt 0:00:01]} 21. e5 {[%emt 0:00:21]} f5 {[%emt 0:00:15]} 22. Nxg5+ {[%emt 0:01:23][%cal Bf3g5,Bg5h7,Bh7f6][%mdl 32]} Ke8 {[%emt 0:00:18]} (22... Kf8 {simplifies} 23. gxf5 Ngxf5 24. Qb3 Nxd4 25. Qxb6 axb6 26. Ndf3 Nxf3+ 27. Nxf3 Nc6) 23. Rc1 {[%emt 0:05:59] White is now going downhill.} ({Only move:} 23. gxf5 $1 $15 Ngxf5 24. Qb3) 23... fxg4 $17 {[%emt 0:01:58]} 24. Nh7 {[%emt 0:02:05]} (24. Qc7 Nc6 25. Qxb6 axb6) 24... Ngf5 {[%emt 0:01:05]} (24... Qxd4 $6 25. Nf6+ Kf7 26. Nxd7 $11) 25. Nf6+ {[%emt 0:00:03]} Kd8 {[%emt 0:00:02]} 26. Nb3 {[%emt 0:02:19]} (26. Qc5 $17 {keeps fighting.}) 26... Ba4 $19 {[%emt 0:01:08] ...Rh1 would now be deadly.} (26... Nxd4 $2 {loses.} 27. Nxd4 a6 28. Nb3 $18) 27. Qc5 {[%emt 0:01:52]} Bxb3 {[%emt 0:00:11]} 28. axb3 {[%emt 0:00:13]} Nxd4 {[%emt 0:01:50]} 29. Qxb6+ {[%emt 0:00:08]} axb6 {[%emt 0:00:01]} 30. Nxg4 {[%emt 0:00:04]} Rh4 {[%emt 0:00:56]} 31. Ne3 {[%emt 0:00:04]} Nec6 {[%emt 0:00:32]} ({Don't do} 31... Nxb3 32. Rc3 Nc5 33. Nd1 $19) 32. Ra1 {[%emt 0:00:26]} Nxe5 {[%emt 0:00:07][%cal Oh4h1]} 33. Ra7 {[%emt 0:00:11]} Kc8 {[%emt 0:00:30][%cal Oc8b8]} (33... Nxb3 34. Rxb7 d4 35. Rxb6 dxe3 36. Rb8+ Kc7 37. Rxb3 Nf3+ 38. Kd1 $17) 34. Ra8+ {[%emt 0:00:06]} Kc7 {[%emt 0:00:01]} 35. b4 $2 {[%emt 0:00:15]} (35. Rf8) 35... Rh1 {[%emt 0:01:16] Threatens to win with ...Ndf3+. Black is clearly winning.} 36. Rg8 {[%emt 0:00:18]} Ndf3+ {[%emt 0:00:25] A dynamic duo of knights.} 37. Ke2 {[%emt 0:00:07]} d4 {[%emt 0:00:02]} 38. Rg7+ {[%emt 0:00:01]} Kb8 {[%emt 0:00:06]} 39. Rg8+ {[%emt 0:00:06]} Ka7 {[%emt 0:00:03] ( -> ...d3+)} 40. Nd1 {[%emt 0:00:08]} d3+ {[%emt 0:00:07]} 41. Ke3 {[%emt 0:00:00]} Rxf1 {[%emt 0:00:02]} 42. Nc3 {[%emt 0:00:01] [#]} b5 $1 {[%emt 0:00:19] aiming for ...Re1+.} 43. Nxb5+ {[%emt 0:00:05]} (43. Kf4 Rxf2) 43... Kb6 {[%emt 0:00:01]} 44. Nc3 {[%emt 0:00:11]} Re1+ {[%emt 0:00:21]} 45. Kf4 {[%emt 0:00:03]} d2 {[%emt 0:00:01]} 46. Rd8 {[%emt 0:00:09]} Kc7 {[%emt 0:00:12] Weighted Error Value: White=0.54/Black=0.12 (very precise) .  Mistake:       	White=4     	Black=1      Inaccurate:     	White=4     	---        OK:         	White=11    	Black=15     Best:        	White=3     	Black=4      Strong:       	---       	Black=1} 0-1

[Event "7th Salamanca Festival 2024"]
[Site "Salamanca"]
[Date "2024.05.24"]
[Round "5.1"]
[White "Ponomariov, Ruslan"]
[Black "Calzetta Ruiz, Monica"]
[Result "1-0"]
[ECO "B38"]
[WhiteElo "2646"]
[BlackElo "2244"]
[Annotator "TA"]
[PlyCount "81"]
[EventDate "2024.05.18"]
[EventType "tourn"]
[EventCountry "ESP"]
[SourceTitle "playchess.com"]
[Source "ChessBase"]
[SourceQuality "1"]
[TimeControl "2400+5"]

{[%evp 29,81,60,61,19,24,29,36,18,22,18,24,24,72,65,81,66,62,70,110,101,118,111,122,145,192,193,241,256,279,273,266,274,260,251,254,280,401,400,405,383,406,401,459,464,512,519,555,540,819,762,29976,7075,29984,6569]} 1. e4 {[%emt 0:00:04]} c5 {[%emt 0:00:02]} 2. Nf3 {[%emt 0:00:02]} Nc6 {[%emt 0:00:03]} 3. d4 {[%emt 0:00:05]} cxd4 {[%emt 0:00:03]} 4. Nxd4 {[%emt 0:00:02]} g6 {[%emt 0:00:06]} 5. c4 {[%emt 0:00:07]} Nf6 {[%emt 0:00:19]} 6. Nc3 {[%emt 0:00:03]} d6 {[%emt 0:00:02]} 7. Be2 {[%emt 0:00:13]} Bg7 {[%emt 0:00:06]} 8. Be3 {[%emt 0:00:15]} O-O {[%emt 0:00:19]} 9. O-O {[%emt 0:00:26]} Bd7 {[%emt 0:00:06]} 10. Qd2 {[%emt 0:00:47]} Nxd4 {[%emt 0:00:41]} 11. Bxd4 {[%emt 0:00:02]} Bc6 {[%emt 0:00:03]} 12. f3 {[%emt 0:00:11]} Nd7 {[%emt 0:00:12]} 13. Be3 {[%emt 0:00:01]} a5 {[%emt 0:00:02]} 14. b3 {[%emt 0:00:25]} Nc5 {[%emt 0:00:11]} 15. Rab1 {[%emt 0:00:05]} e6 {[%emt 0:00:56]} 16. Nd1 {[%emt 0:05:46][%cal Bc3d1,Bd1f2,Bf2g4,Bg4e3,Be3c2,Bc2d4][%mdl 32]} b6 {[%emt 0:03:08]} 17. Bg5 {[%emt 0:06:07]} Qc7 {[%emt 0:08:55]} 18. Nf2 {[%emt 0:00:21] White is slightly better.} f6 {[%emt 0:01:24]} 19. Bh4 {[%emt 0:05:51][%cal Bg5h4,Bh4f2,Bf2e3][%mdl 32]} Rfd8 {[%emt 0:05:53]} 20. Ng4 {[%emt 0:01:19]} g5 {[%emt 0:01:39]} (20... Qe7 $11) 21. Bf2 $16 {[%emt 0:00:04]} Qe7 {[%emt 0:07:53]} 22. Rfe1 {[%emt 0:01:14] White is more active.} h5 {[%emt 0:00:50]} 23. Ne3 {[%emt 0:00:03]} Bh6 {[%emt 0:00:41] White leaves nothing to chance now.} 24. Nc2 {[%emt 0:01:40]} Qg7 {[%emt 0:00:47]} 25. Be3 {[%emt 0:00:25]} Rac8 {[%emt 0:02:06]} 26. Nd4 {[%emt 0:00:08]} Bd7 {[%emt 0:01:09] [#]} (26... h4 $16 27. a3 Be8) 27. a3 $1 $18 {[%emt 0:00:53][%cal Ba2a3,Ba3b4][%mdl 32]} Kh8 {[%emt 0:03:47]} (27... Be8 {is a better defense.} 28. b4 axb4) 28. b4 {[%emt 0:00:07]} axb4 {[%emt 0:00:01]} 29. axb4 {[%emt 0:00:01]} Nb7 {[%emt 0:00:14]} 30. Ra1 {[%emt 0:04:07]} Ra8 {[%emt 0:00:01]} 31. Nb3 {[%emt 0:00:05]} Ba4 {[%emt 0:00:33]} 32. Bxb6 {[%emt 0:01:57]} Bxb3 {[%emt 0:00:05]} (32... Rdb8 {was necessary.} 33. Nd4 g4) 33. Bxd8 {[%emt 0:00:02]} Rxd8 {[%emt 0:00:02]} 34. Qc3 {[%emt 0:00:07]} g4 {[%emt 0:00:19]} 35. fxg4 {[%emt 0:00:12]} (35. Qxb3 g3 36. h3 Bf4 $18) 35... f5 {[%emt 0:00:16]} 36. Qxb3 {[%emt 0:00:14]} fxg4 {[%emt 0:00:02]} 37. Kh1 {[%emt 0:02:09]} Bf4 {[%emt 0:00:01]} 38. Ra7 {[%emt 0:00:54]} Rd7 {[%emt 0:00:03] [#]} 39. c5 $1 {[%emt 0:01:51]} Qd4 {[%emt 0:00:05]} (39... dxc5 40. Qxe6) 40. Qxe6 {[%emt 0:00:31]} dxc5 {[%emt 0:00:02]} 41. Bc4 {[%emt 0:00:43] Weighted Error Value: White=0.03 (flawless) /Black=0.63.  Mistake:       	---       	Black=4      Inaccurate:     	---       	Black=3      OK:         	White=16    	Black=3      Best:        	White=1     	---        Strong:       	White=1     	---} (41. Rf1 $142 Rd8 42. Rxb7 (42. Rxf4 Qd6 43. Qf7 Rd7 44. Ra8+ Nd8 45. Rxd8+ Rxd8 46. Qxh5+ Kg8 47. Bc4+ Qd5 48. Bxd5+ Rxd5 49. Qg6+ Kh8 50. Rf8#) 42... Qd6 43. Qf7 (43. Qxd6 Bxd6 44. Rf5 Rf8 45. Rxh5+ Kg8 46. Bc4+ Rf7 47. Rxf7 Be7 48. Rxe7+ Kf8 49. Ra7 cxb4 50. Rh8#) 43... Rd7 44. Rxd7 (44. Qxd7 Qxd7 45. Rxd7 Bh6 46. Rff7 Bg7 47. Rxg7 cxb4 48. Rge7 h4 49. Re8#) (44. Qe8+ Kg7 45. Rxd7+ Qxd7 46. Qxd7+ Kh6 47. Rxf4 cxb4 48. Qe6+ Kh7 49. Rf7+ Kh8 50. Qe8#) 44... Qxd7 45. Qxd7 Bh6 46. Rf7 (46. bxc5 Bg7 47. Rf7 h4 48. Rxg7 g3 49. Rh7+ Kg8 50. Qg7#) 46... Bg7 47. Rxg7 cxb4 48. Rh7+ Kg8 49. Qg7#) 1-0